bitfinex-derivatives/quotes_SOLF0:USTF0_20260306
["timestamp","ask_amount","ask_price","bid_price","bid_amount"]
[1772831387087,3.97761075,84.909,84.88,3.63178324]
[1772831387289,12.13605981,84.908,84.88,3.63178324]
[1772831387489,2.94413312,84.907,84.88,3.63178324]
[1772831387681,3.97761075,84.908,84.88,3.63178324]
[1772831387886,2.9441334,84.907,84.88,3.63178324]
[1772831388094,3.97761075,84.921,84.89,3.63178324]
[1772831388284,3.97761075,84.919,84.89,3.63178324]
[1772831388490,16.11596669,84.918,84.881,3.90457237]
[1772831388691,12.13835594,84.917,84.881,3.90457237]
[1772831388890,12.13835594,84.916,84.881,3.90457237]
[1772831389193,3.97761075,84.914,84.871,3.90457237]
[1772831389392,3.97761075,84.912,84.871,3.90457237]
[1772831389593,3.97761075,84.91,84.871,3.90457237]
[1772831391892,16.10786746,84.909,84.871,3.90457237]
[1772831392196,16.10786746,84.908,84.871,3.90457237]
[1772831392392,12.13025671,84.907,84.871,3.90457237]
[1772831392590,2.94413108,84.906,84.871,3.90457237]
[1772831392791,3.97761075,84.908,84.871,3.90457237]
[1772831392992,12.13338231,84.907,84.871,3.90457237]
[1772831393193,3.97761075,84.908,84.871,3.90457237]
[1772831393194,2.94413108,84.906,84.871,3.90457237]
[1772831393395,2.94413108,84.905,84.871,3.90457237]
[1772831393596,3.97761075,84.908,84.871,3.90457237]
[1772831393797,12.13457261,84.907,84.871,3.90457237]
[1772831393999,2.94413108,84.906,84.871,3.90457237]
[1772831394200,2.94413108,84.905,84.871,3.90457237]
[1772831394501,3.97761075,84.908,84.871,3.90457237]
[1772831394698,16.11771689,84.907,84.871,3.90457237]
[1772831394896,16.11771689,84.906,84.871,3.90457237]
[1772831395096,2.94413108,84.905,84.871,3.90457237]
[1772831395400,3.97761075,84.903,84.871,3.90457237]
[1772831395595,3.97761075,84.901,84.871,3.90457237]
[1772831395898,3.97761075,84.899,84.871,3.90457237]
[1772831396099,12.14128475,84.898,84.871,3.90457237]
[1772831396302,12.14128475,84.897,84.871,3.90457237]
[1772831396501,12.14128475,84.896,84.871,3.90457237]
[1772831396702,2.94431778,84.895,84.871,3.90457237]
[1772831396899,3.97761075,84.899,84.871,3.90457237]
[1772831397101,12.14261512,84.898,84.871,3.90457237]
[1772831397400,3.97761075,84.899,84.871,3.90457237]
[1772831397401,12.14261512,84.897,84.871,3.90457237]
[1772831397602,12.14261512,84.896,84.871,3.90457237]
[1772831397796,12.14222228,84.895,84.871,3.90457237]
[1772831398001,12.14222228,84.894,84.871,3.90457237]
[1772831398299,3.97761075,84.899,84.871,3.90457237]
[1772831398502,15.92101428,84.898,84.871,3.90457237]
[1772831398703,12.14201792,84.897,84.871,3.90457237]
[1772831398904,12.14201792,84.896,84.871,3.90457237]
[1772831399104,2.94447547,84.895,84.871,3.90457237]
[1772831399305,3.77899636,84.898,84.871,3.90457237]
[1772831399606,12.14414445,84.897,84.871,3.90457237]
[1772831399808,12.14414445,84.896,84.871,3.90457237]
[1772831400010,2.94447619,84.895,84.871,3.90457237]
[1772831400309,3.77899636,84.898,84.871,3.90457237]
[1772831400509,12.14428013,84.897,84.871,3.90457237]
[1772831400807,12.14428013,84.896,84.871,3.90457237]
[1772831401008,2.94447619,84.895,84.871,3.90457237]
[1772831401203,3.77899636,84.898,84.871,3.90457237]
[1772831401409,3.77899636,84.896,84.86,10.606]
[1772831401611,3.77899636,84.889,84.837,3.68899202]
[1772831401910,3.87254038,84.879,84.828,3.9152088]
[1772831402103,3.87254038,84.877,84.828,3.9152088]
[1772831402304,3.87254038,84.875,84.828,3.9152088]
[1772831402601,3.87254038,84.873,84.828,3.9152088]
[1772831402806,3.87254038,84.871,84.83,10.609]
[1772831403006,3.87254038,84.869,84.83,10.609]
[1772831403206,3.87254038,84.867,84.83,10.609]
[1772831403402,2.94447619,84.866,84.83,14.5242088]
[1772831403605,2.94447619,84.865,84.833,10.609]
[1772831403910,2.94447619,84.864,84.833,10.609]
[1772831404210,2.94447619,84.863,84.831,3.9152088]
[1772831404409,3.87254038,84.867,84.831,3.9152088]
[1772831404410,2.94447619,84.862,84.831,3.9152088]
[1772831404707,2.94447619,84.861,84.831,3.9152088]
[1772831404909,2.94447619,84.86,84.831,3.9152088]
[1772831405109,2.94447619,84.859,84.831,3.9152088]
[1772831405410,3.87254038,84.858,84.825,10.61]
[1772831405807,2.94558491,84.857,84.821,3.9152088]
[1772831406109,3.87254038,84.858,84.821,3.9152088]
[1772831406311,2.94558542,84.857,84.821,3.9152088]
[1772831406512,3.87254038,84.858,84.821,3.9152088]
[1772831406813,2.94558542,84.857,84.821,3.9152088]
[1772831407012,3.87254038,84.858,84.821,3.9152088]
[1772831410906,3.87254038,84.858,84.811,3.9152088]
[1772831411109,3.87254038,84.856,84.82,3.63178324]
[1772831412013,3.87254038,84.854,84.82,3.63178324]
[1772831412608,3.87254038,84.854,84.804,312.85848844]
[1772831412812,3.87254038,84.839,84.79,3.63178324]
[1772831413113,3.87254038,84.837,84.79,3.63178324]
[1772831413619,3.87254038,84.837,84.8,3.63178324]
[1772831414412,3.87254038,84.837,84.801,10.613]
[1772831414618,3.87254038,84.837,84.81,3.63178324]
[1772831416621,3.87254038,84.858,84.81,3.63178324]
[1772831416821,3.87254038,84.856,84.81,3.63178324]
[1772831417017,3.87254038,84.854,84.81,3.63178324]
[1772831417218,3.87254038,84.852,84.81,3.63178324]
[1772831417412,3.87254038,84.85,84.81,3.63178324]
[1772831418621,3.87254038,84.85,84.802,3.9152088]
[1772831420019,3.87254038,84.85,84.81,7.54699204]
[1772831422122,7.50432362,84.85,84.81,3.9152088]
[1772831422329,3.87254038,84.849,84.81,3.9152088]
[1772831424630,3.87254038,84.849,84.81,7.54699204]
[1772831425422,3.87254038,84.849,84.811,3.9152088]
[1772831428928,3.87254038,84.847,84.811,3.9152088]
[1772831429629,3.87254038,84.845,84.811,3.9152088]
[1772831431438,10.608,84.843,84.811,3.9152088]
[1772831435340,10.607,84.852,84.811,3.9152088]
[1772831435745,14.59109491,84.852,84.811,3.9152088]
[1772831435942,3.98409491,84.851,84.811,3.9152088]
[1772831436942,3.98409491,84.851,84.821,3.84021807]
[1772831437340,2.94631013,84.85,84.821,3.84021807]
[1772831437645,3.98409491,84.851,84.821,3.84021807]
[1772831437946,2.94631013,84.85,84.821,3.84021807]
[1772831438146,3.98409491,84.851,84.821,3.84021807]
[1772831438346,2.94631013,84.85,84.821,3.84021807]
[1772831438548,2.94631013,84.849,84.821,3.84021807]
[1772831438748,10.606,84.86,84.821,3.84021807]
[1772831439048,3.98409491,84.858,84.821,3.84021807]
[1772831439242,3.98409491,84.856,84.821,3.84021807]
[1772831439447,2.94607358,84.855,84.821,3.84021807]
[1772831439647,2.94607358,84.854,84.821,3.84021807]
[1772831439943,2.94607358,84.853,84.821,3.84021807]
[1772831440142,2.94607358,84.852,84.821,3.84021807]
[1772831440348,2.94607358,84.851,84.821,3.84021807]
[1772831440544,2.94607358,84.85,84.821,3.84021807]
[1772831440742,3.98409491,84.853,84.821,3.84021807]
[1772831440945,6.93016814,84.852,84.821,3.84021807]
[1772831441245,2.94607323,84.851,84.821,3.84021807]
[1772831441442,2.94607323,84.85,84.821,3.84021807]
[1772831441648,2.94607323,84.849,84.821,3.84021807]
[1772831441945,3.98409491,84.851,84.821,3.84021807]
[1772831442147,2.94607323,84.85,84.821,3.84021807]
[1772831442342,2.94607323,84.849,84.821,3.84021807]
[1772831442547,2.94607323,84.848,84.821,3.84021807]
[1772831442846,2.94607323,84.847,84.821,3.84021807]
[1772831443149,3.98409491,84.851,84.821,3.84021807]
[1772831443348,2.94607347,84.85,84.821,3.84021807]
[1772831443547,2.94607347,84.849,84.821,3.84021807]
[1772831443743,10.606,84.854,84.83,3.63732236]
[1772831444049,2.94603606,84.853,84.83,3.63732236]
[1772831444250,2.94603606,84.852,84.83,3.63732236]
[1772831444446,2.94603606,84.851,84.83,3.63732236]
[1772831444746,2.94603606,84.85,84.831,3.84021807]
[1772831444948,14.59009491,84.862,84.831,3.84021807]
[1772831445147,2.94591703,84.861,84.831,3.84021807]
[1772831445349,3.98409491,84.859,84.831,3.84021807]
[1772831445546,2.94591703,84.858,84.831,3.84021807]
[1772831445750,2.94591703,84.857,84.831,3.84021807]
[1772831445948,2.94591703,84.856,84.831,3.84021807]
[1772831446143,2.94591703,84.855,84.831,3.84021807]
[1772831446343,2.94591703,84.854,84.831,3.84021807]
[1772831446546,2.94591703,84.853,84.831,3.84021807]
[1772831446843,2.94591703,84.852,84.831,3.84021807]
[1772831447149,2.94591703,84.851,84.831,3.84021807]
[1772831447450,2.94591703,84.85,84.831,3.84021807]
[1772831447647,2.94591703,84.849,84.831,3.84021807]
[1772831447845,2.94591703,84.848,84.831,3.84021807]
[1772831448043,2.94591703,84.847,84.831,3.84021807]
[1772831448249,2.94591703,84.846,84.831,3.84021807]
[1772831448550,3.98409491,84.859,84.831,3.84021807]
[1772831448851,2.94579762,84.858,84.831,3.84021807]
[1772831449048,2.94579762,84.857,84.831,3.84021807]
[1772831449248,2.94579762,84.856,84.831,3.84021807]
[1772831449549,2.94579762,84.855,84.831,3.84021807]
[1772831449744,2.94579762,84.854,84.831,3.84021807]
[1772831449950,2.94579762,84.853,84.831,3.84021807]
[1772831450248,2.94579762,84.852,84.831,3.84021807]
[1772831450548,2.94579762,84.851,84.831,3.84021807]
[1772831450749,2.94579762,84.85,84.831,3.84021807]
[1772831450950,2.94579762,84.849,84.831,3.84021807]
[1772831451151,2.94579762,84.848,84.831,3.84021807]
[1772831451351,2.94579762,84.847,84.831,3.84021807]
[1772831451548,3.98409491,84.859,84.831,3.84021807]
[1772831451752,2.94579722,84.858,84.831,3.84021807]
[1772831451953,2.94579722,84.857,84.831,3.84021807]
[1772831452153,2.94579722,84.856,84.831,3.84021807]
[1772831452354,2.94579722,84.855,84.831,3.84021807]
[1772831452651,2.94579722,84.854,84.831,3.84021807]
[1772831452856,2.94579722,84.853,84.831,3.84021807]
[1772831453055,2.94579722,84.852,84.831,3.84021807]
[1772831453254,2.94579722,84.851,84.831,3.84021807]
[1772831453455,2.94579722,84.85,84.831,3.84021807]
[1772831453655,3.98409491,84.869,84.831,3.84021807]
[1772831453856,3.98409491,84.867,84.831,3.84021807]
[1772831454055,9.22567206,84.866,84.831,3.84021807]
[1772831454356,9.22567206,84.865,84.831,3.84021807]
[1772831454550,9.22567206,84.864,84.831,3.84021807]
[1772831454757,9.22567206,84.863,84.831,3.84021807]
[1772831454956,9.22567206,84.862,84.831,3.84021807]
[1772831455155,3.98409491,84.867,84.831,3.84021807]
[1772831455357,9.22683406,84.866,84.831,3.84021807]
[1772831455556,9.22683406,84.865,84.831,3.84021807]
[1772831455859,9.22683406,84.864,84.831,3.84021807]
[1772831456064,9.22683406,84.863,84.831,3.84021807]
[1772831456366,9.22683406,84.862,84.831,3.84021807]
[1772831456567,3.98409491,84.867,84.831,3.84021807]
[1772831456861,9.22676541,84.866,84.831,3.84021807]
[1772831457063,9.22676541,84.865,84.831,3.84021807]
[1772831457265,9.22676541,84.865,84.789,317.76268054]
[1772831457266,3.7101598,84.876,84.841,3.66916248]
[1772831457467,9.22522359,84.875,84.85,3.63732236]
[1772831457664,9.22522359,84.874,84.851,3.66916248]
[1772831457860,465.41428723,84.881,84.851,3.66916248]
[1772831458159,9.22510364,84.88,84.851,3.66916248]
[1772831458359,9.22510364,84.879,84.851,3.66916248]
[1772831458556,9.22510364,84.878,84.851,3.66916248]
[1772831458862,9.22510364,84.877,84.851,3.66916248]
[1772831459064,9.22510364,84.876,84.851,3.66916248]
[1772831459366,465.41428723,84.881,84.851,3.66916248]
[1772831459367,469.12444703,84.881,84.851,3.66916248]
[1772831459560,9.22164133,84.88,84.851,3.66916248]
[1772831459761,9.22164133,84.879,84.851,3.66916248]
[1772831459960,9.22164133,84.878,84.851,3.66916248]
[1772831460158,3.7101598,84.876,84.85,3.63732236]
[1772831460563,465.41428723,84.881,84.83,7.30648484]
[1772831460564,3.7101598,84.874,84.83,7.30648484]
[1772831461468,3.7101598,84.866,84.83,7.30648484]
[1772831462572,465.41428723,84.881,84.84,3.63732236]
[1772831462573,3.83342372,84.877,84.84,3.63732236]
[1772831462765,3.83342372,84.875,84.831,3.88956599]
[1772831462958,465.41428723,84.881,84.831,3.88956599]
[1772831462959,3.83342372,84.873,84.831,3.88956599]
[1772831464571,3.83342372,84.871,84.831,3.88956599]
[1772831464970,3.83342372,84.869,84.831,3.88956599]
[1772831465662,3.83342372,84.867,84.831,3.88956599]
[1772831465869,3.83342372,84.865,84.831,3.88956599]
[1772831466071,2.9457561,84.864,84.831,3.88956599]
[1772831466273,2.9457561,84.863,84.831,3.88956599]
[1772831466473,2.9457561,84.862,84.831,3.88956599]
[1772831466672,465.41428723,84.881,84.831,3.88956599]
[1772831466873,9.21808087,84.88,84.84,3.63732236]
[1772831467073,9.21808087,84.879,84.834,3.88956599]
[1772831467273,9.21808087,84.878,84.834,3.88956599]
[1772831467476,9.21808087,84.877,84.834,3.88956599]
[1772831467776,9.21808087,84.876,84.834,3.88956599]
[1772831467978,9.21808087,84.875,84.834,3.88956599]
[1772831468174,9.21808087,84.874,84.834,3.88956599]
[1772831468471,9.21808087,84.873,84.834,3.88956599]
[1772831468671,3.83342372,84.879,84.834,3.88956599]
[1772831468874,3.83342372,84.877,84.834,3.88956599]
[1772831469077,3.83342372,84.875,84.834,3.88956599]
[1772831469372,3.83342372,84.873,84.834,3.88956599]
[1772831470979,3.83342372,84.873,84.83,10.609]
[1772831472178,3.83342372,84.873,84.83,14.24632236]
[1772831472678,3.83342372,84.873,84.833,10.609]
[1772831473178,9.21724859,84.872,84.833,10.609]
[1772831473377,3.63732236,84.88,84.833,10.609]
[1772831473378,3.83342372,84.87,84.833,10.609]
[1772831473577,3.83342372,84.868,84.833,10.609]
[1772831474574,3.63732236,84.88,84.838,3.88956599]
[1772831474778,3.83342372,84.878,84.838,3.88956599]
[1772831474979,3.83342372,84.876,84.838,3.88956599]
[1772831475277,3.63732236,84.89,84.838,3.88956599]
[1772831475278,13.05194692,84.875,84.838,3.88956599]
[1772831475478,9.2185232,84.874,84.838,3.88956599]
[1772831475676,3.83342372,84.875,84.838,3.88956599]
[1772831475876,9.21863115,84.874,84.839,14.49756599]
[1772831476074,3.83342372,84.875,84.839,14.49756599]
[1772831476270,9.21857713,84.874,84.839,14.49756599]
[1772831476577,3.83342372,84.875,84.839,14.49756599]
[1772831476776,9.21981602,84.874,84.839,14.49756599]
[1772831476978,3.83342372,84.875,84.839,14.49756599]
[1772831477178,9.21981602,84.874,84.839,14.49756599]
[1772831477474,9.21981602,84.873,84.839,14.49756599]
[1772831477777,3.83342372,84.875,84.839,14.49756599]
[1772831477979,9.2212152,84.874,84.839,14.49756599]
[1772831478177,3.83342372,84.875,84.84,3.88956599]
[1772831478178,9.2212152,84.873,84.84,3.88956599]
[1772831478377,3.83342372,84.875,84.84,3.88956599]
[1772831478570,3.83342372,84.873,84.84,3.88956599]
[1772831478769,2.9454512,84.872,84.84,3.88956599]
[1772831478973,2.9454512,84.871,84.84,3.88956599]
[1772831479170,2.9454512,84.87,84.84,3.88956599]
[1772831479374,12.17103064,84.869,84.84,3.88956599]
[1772831479579,12.17103064,84.868,84.84,3.88956599]
[1772831479782,12.17103064,84.867,84.84,3.88956599]
[1772831479982,12.17103064,84.866,84.84,3.88956599]
[1772831480182,12.17103064,84.865,84.84,3.88956599]
[1772831480382,2.9454512,84.864,84.84,3.88956599]
[1772831480579,3.83342372,84.869,84.84,3.88956599]
[1772831480580,2.9454512,84.863,84.84,3.88956599]
[1772831480781,2.9454512,84.862,84.84,3.88956599]
[1772831481084,2.9454512,84.861,84.84,3.88956599]
[1772831481293,2.9454512,84.86,84.84,3.88956599]
[1772831481476,2.9454512,84.859,84.84,3.88956599]
[1772831481681,2.9454512,84.858,84.84,3.88956599]
[1772831481880,2.9454512,84.857,84.84,3.88956599]
[1772831482082,2.9454512,84.856,84.84,3.88956599]
[1772831482286,2.9454512,84.855,84.84,3.88956599]
[1772831482486,2.9454512,84.854,84.84,3.88956599]
[1772831482685,3.83342372,84.869,84.84,3.88956599]
[1772831482985,12.14849806,84.868,84.84,3.88956599]
[1772831483186,3.83342372,84.869,84.84,3.88956599]
[1772831483187,12.14849806,84.867,84.84,3.88956599]
[1772831483385,2.94556857,84.866,84.84,3.88956599]
[1772831483577,2.94556857,84.865,84.84,3.88956599]
[1772831483781,2.94556857,84.864,84.84,3.88956599]
[1772831483981,2.94556857,84.863,84.84,3.88956599]
[1772831484287,2.94556857,84.862,84.84,3.88956599]
[1772831484483,2.94556857,84.861,84.84,3.88956599]
[1772831484683,2.94556857,84.86,84.84,3.88956599]
[1772831484883,2.94556857,84.859,84.84,3.88956599]
[1772831485183,2.94556857,84.858,84.84,3.88956599]
[1772831485482,2.94556857,84.857,84.84,3.88956599]
[1772831485684,3.83342372,84.869,84.84,3.88956599]
[1772831485685,2.94556857,84.856,84.84,3.88956599]
[1772831485884,2.94556857,84.855,84.84,3.88956599]
[1772831486084,2.94556857,84.854,84.84,3.88956599]
[1772831486285,2.94556857,84.853,84.84,3.88956599]
[1772831486491,2.94556857,84.852,84.84,3.88956599]
[1772831486781,3.83342372,84.869,84.84,3.88956599]
[1772831486985,12.15244827,84.868,84.84,3.88956599]
[1772831487185,12.15244827,84.867,84.84,3.88956599]
[1772831487381,12.15244827,84.866,84.84,3.88956599]
[1772831487582,2.94556857,84.865,84.84,3.88956599]
[1772831487782,2.94556857,84.864,84.84,3.88956599]
[1772831487982,2.94556857,84.863,84.84,3.88956599]
[1772831488181,2.94556857,84.862,84.84,3.88956599]
[1772831488479,2.94556857,84.861,84.84,3.88956599]
[1772831488787,2.94556857,84.86,84.84,3.88956599]
[1772831489085,2.94556857,84.859,84.84,3.88956599]
[1772831489284,2.94556857,84.858,84.84,3.88956599]
[1772831489485,2.94556857,84.857,84.84,3.88956599]
[1772831489684,2.94556857,84.856,84.84,3.88956599]
[1772831489981,2.94556857,84.855,84.84,3.88956599]
[1772831490285,3.83342372,84.881,84.84,3.88956599]
[1772831490488,3.83342372,84.879,84.831,10.609]
[1772831490683,3.83342372,84.877,84.831,14.49856599]
[1772831490881,3.83342372,84.875,84.831,14.49856599]
[1772831491082,3.83342372,84.873,84.831,14.49856599]
[1772831491386,3.83342372,84.871,84.831,14.49856599]
[1772831491578,3.83342372,84.869,84.831,14.49856599]
[1772831491884,3.65698873,84.867,84.833,10.609]
[1772831492086,9.21053866,84.866,84.833,10.609]
[1772831492280,9.21053866,84.865,84.833,10.609]
[1772831492486,9.21053866,84.864,84.833,10.609]
[1772831492679,9.21053866,84.863,84.833,10.609]
[1772831492985,9.21053866,84.862,84.833,10.609]
[1772831493182,9.21053866,84.861,84.833,10.609]
[1772831493383,9.21053866,84.86,84.833,10.609]
[1772831493583,3.65698873,84.867,84.833,10.609]
[1772831493781,9.2135926,84.866,84.833,10.609]
[1772831493983,9.2135926,84.865,84.833,10.609]
[1772831494183,9.2135926,84.864,84.833,10.609]
[1772831494383,9.2135926,84.863,84.833,10.609]
[1772831494587,9.2135926,84.862,84.833,14.25784864]
[1772831494885,9.2135926,84.861,84.833,14.25784864]
[1772831495086,9.2135926,84.86,84.833,14.25784864]
[1772831495288,3.65698873,84.867,84.833,14.25784864]
[1772831495587,9.21421476,84.866,84.833,14.25784864]
[1772831495788,9.21421476,84.865,84.834,3.64884864]
[1772831496086,9.21421476,84.864,84.834,3.64884864]
[1772831496286,9.21421476,84.863,84.834,3.64884864]
[1772831496480,3.65698873,84.867,84.834,3.64884864]
[1772831496481,9.21421476,84.862,84.834,3.64884864]
[1772831496684,9.21421476,84.861,84.834,3.64884864]
[1772831496880,3.65698873,84.867,84.834,3.64884864]
[1772831497184,9.21441126,84.866,84.834,3.64884864]
[1772831497387,9.21441126,84.865,84.834,3.64884864]
[1772831497588,9.21441126,84.864,84.834,3.64884864]
[1772831497887,9.21441126,84.863,84.834,3.64884864]
[1772831498088,9.21441126,84.862,84.834,3.64884864]
[1772831498284,9.21441126,84.861,84.834,3.64884864]
[1772831498491,3.65698873,84.867,84.834,3.64884864]
[1772831498788,9.21528396,84.866,84.834,3.64884864]
[1772831498991,9.21528396,84.865,84.834,3.64884864]
[1772831499190,9.21528396,84.864,84.834,3.64884864]
[1772831499489,9.21528396,84.863,84.834,3.64884864]
[1772831499689,9.21528396,84.862,84.834,3.64884864]
[1772831499890,9.21528396,84.861,84.834,3.64884864]
[1772831500091,3.65698873,84.867,84.836,3.64884864]
[1772831500291,3.65698873,84.865,84.836,3.64884864]
[1772831500491,9.2158398,84.864,84.84,3.6349071]
[1772831500692,9.2158398,84.863,84.84,3.6349071]
[1772831500883,9.2158398,84.862,84.84,3.6349071]
[1772831501088,9.2158398,84.861,84.836,3.64884864]
[1772831501284,9.2158398,84.86,84.836,3.64884864]
[1772831501489,10.98459242,84.88,84.836,3.64884864]
[1772831501789,3.65698873,84.878,84.836,3.64884864]
[1772831501985,3.65698873,84.876,84.836,3.64884864]
[1772831502188,3.65698873,84.874,84.84,3.6349071]
[1772831502390,3.65698873,84.872,84.84,3.6349071]
[1772831502692,10.98459242,84.88,84.836,3.64884864]
[1772831502693,3.65698873,84.87,84.836,3.64884864]
[1772831502893,15.81949767,84.869,84.837,10.608]
[1772831503195,12.16250894,84.868,84.837,10.608]
[1772831503392,12.16250894,84.867,84.837,10.608]
[1772831503696,12.16250894,84.866,84.837,10.608]
[1772831503995,12.16250894,84.865,84.837,10.608]
[1772831504192,12.16250894,84.864,84.837,10.608]
[1772831504392,12.16250894,84.863,84.837,10.608]
[1772831504593,12.16250894,84.862,84.837,10.608]
[1772831504796,12.16250894,84.861,84.837,10.608]
[1772831504996,12.16250894,84.86,84.837,10.608]
[1772831505198,2.9456842,84.859,84.837,10.608]
[1772831505398,2.9456842,84.858,84.837,10.608]
[1772831505599,2.9456842,84.857,84.837,10.608]
[1772831505898,2.9456842,84.856,84.837,10.608]
[1772831506198,2.9456842,84.855,84.837,10.608]
[1772831506399,3.65698873,84.861,84.83,3.6349071]
[1772831506400,2.9456842,84.854,84.83,3.6349071]
[1772831506598,2.9456842,84.853,84.83,3.6349071]
[1772831506798,2.9456842,84.852,84.83,7.28375574]
[1772831507094,2.9456842,84.851,84.83,7.28375574]
[1772831507294,2.9456842,84.85,84.83,7.28375574]
[1772831507498,2.9456842,84.849,84.83,7.28375574]
[1772831507701,2.9456842,84.848,84.83,7.28375574]
[1772831507903,0.0006842,84.848,84.831,3.64884864]
[1772831508103,3.65698873,84.861,84.831,3.64884864]
[1772831508402,9.21839054,84.86,84.831,3.64884864]
[1772831508601,9.21839054,84.859,84.831,3.64884864]
[1772831508802,3.65698873,84.861,84.831,3.64884864]
[1772831508998,9.21829074,84.86,84.831,3.64884864]
[1772831509202,9.21829074,84.859,84.831,3.64884864]
[1772831509497,9.21829074,84.858,84.831,3.64884864]
[1772831509703,3.65698873,84.861,84.831,3.64884864]
[1772831509901,9.21838829,84.86,84.831,3.64884864]
[1772831510100,9.21838829,84.859,84.831,3.64884864]
[1772831510403,9.21838829,84.858,84.832,14.25784864]
[1772831510595,3.65698873,84.87,84.832,14.25784864]
[1772831510800,3.65698873,84.868,84.832,10.609]
[1772831511003,3.65698873,84.866,84.832,10.609]
[1772831511202,3.65698873,84.864,84.832,10.609]
[1772831511397,3.65698873,84.862,84.832,10.609]
[1772831511596,3.65698873,84.86,84.832,10.609]
[1772831511804,9.2174908,84.859,84.832,10.609]
[1772831512005,3.65698873,84.86,84.832,10.609]
[1772831512206,9.2174865,84.859,84.832,10.609]
[1772831512406,3.65698873,84.86,84.832,10.609]
[1772831512604,9.21750452,84.859,84.838,10.608]
[1772831512796,3.65698873,84.87,84.838,10.608]
[1772831512998,3.65698873,84.868,84.838,10.608]
[1772831513198,9.21750313,84.867,84.84,17.89175574]
[1772831513399,9.21750313,84.866,84.84,17.89175574]
[1772831513607,9.21750313,84.865,84.84,17.89175574]
[1772831513806,9.21750313,84.864,84.84,17.89175574]
[1772831514004,9.21750313,84.863,84.84,17.89175574]
[1772831514198,9.21750313,84.862,84.84,17.89175574]
[1772831514407,9.21750313,84.861,84.84,17.89175574]
[1772831514604,9.21750313,84.86,84.84,17.89175574]
[1772831514805,9.21750313,84.859,84.84,17.89175574]
[1772831515010,3.65698873,84.875,84.84,17.89175574]
[1772831515206,3.65698873,84.873,84.84,17.89175574]
[1772831515509,3.65698873,84.871,84.84,17.89175574]
[1772831515708,9.21758268,84.87,84.84,17.89175574]
[1772831516007,9.21758268,84.869,84.84,17.89175574]
[1772831516309,9.21758268,84.868,84.84,17.89175574]
[1772831516505,9.21758268,84.867,84.84,17.89175574]
[1772831516704,9.21758268,84.866,84.84,17.89175574]
[1772831516910,9.21758268,84.865,84.84,17.89175574]
[1772831517102,9.21758268,84.864,84.84,17.89175574]
[1772831517307,9.21758268,84.863,84.84,17.89175574]
[1772831517506,9.21758268,84.862,84.84,17.89175574]
[1772831517700,9.21758268,84.861,84.84,17.89175574]
[1772831517906,9.21758268,84.86,84.84,17.89175574]
[1772831518106,9.21758268,84.859,84.84,17.89175574]
[1772831518306,3.65698873,84.871,84.84,7.28375574]
[1772831518602,12.89721925,84.87,84.84,7.28375574]
[1772831518911,9.21795751,84.869,84.84,7.28375574]
[1772831519110,9.21795751,84.868,84.84,7.28375574]
[1772831519308,10.98459242,84.879,84.84,7.28375574]
[1772831519309,3.67926174,84.866,84.84,7.28375574]
[1772831519612,9.21795751,84.865,84.84,7.28375574]
[1772831519807,9.21795751,84.864,84.84,7.28375574]
[1772831520007,9.21795751,84.863,84.84,7.28375574]
[1772831520212,12.1637124,84.862,84.84,7.28375574]
[1772831520411,12.1637124,84.861,84.84,7.28375574]
[1772831520710,12.1637124,84.86,84.84,7.28375574]
[1772831520908,12.1637124,84.859,84.84,7.28375574]
[1772831521107,12.16409172,84.858,84.84,7.28375574]
[1772831521411,2.94575489,84.857,84.84,7.28375574]
[1772831521711,2.94575489,84.856,84.84,7.28375574]
[1772831521909,2.94575489,84.855,84.84,7.28375574]
[1772831522106,2.94575489,84.854,84.84,7.28375574]
[1772831522309,3.67926174,84.866,84.84,3.6349071]
[1772831522310,2.94575489,84.853,84.84,3.6349071]
[1772831522509,2.94575489,84.852,84.84,3.6349071]
[1772831522705,2.94575489,84.851,84.84,3.6349071]
[1772831522906,3.67926174,84.866,84.84,3.6349071]
[1772831523111,9.21926232,84.865,84.84,3.6349071]
[1772831523309,9.21926232,84.864,84.84,3.6349071]
[1772831523509,9.21926232,84.863,84.84,3.6349071]
[1772831523705,9.21926232,84.862,84.84,3.6349071]
[1772831523911,9.21926232,84.861,84.831,3.98103914]
[1772831524113,9.21926232,84.86,84.831,3.98103914]
[1772831524306,9.21926232,84.859,84.831,3.98103914]
[1772831524512,9.21926232,84.858,84.831,3.98103914]
[1772831524815,9.21926232,84.857,84.831,3.98103914]
[1772831525013,3.67926174,84.866,84.831,3.98103914]
[1772831525211,13.04887615,84.865,84.831,3.98103914]
[1772831525412,9.22057672,84.864,84.831,3.98103914]
[1772831525613,9.22057672,84.863,84.831,3.98103914]
[1772831525917,9.22057672,84.862,84.831,3.98103914]
[1772831526105,9.22057672,84.861,84.831,3.98103914]
[1772831526306,9.22057672,84.86,84.831,3.98103914]
[1772831526506,9.22057672,84.859,84.84,3.6349071]
[1772831526712,9.22057672,84.858,84.84,3.6349071]
[1772831527015,9.22057672,84.857,84.84,3.6349071]
[1772831527216,3.82829943,84.865,84.84,3.6349071]
[1772831527416,9.22062759,84.864,84.84,3.6349071]